bitfinex-derivatives/quotes_BTCF0:USTF0_20250720
["timestamp","ask_amount","ask_price","bid_price","bid_amount"]
[1753012777694,0.2806,117970.0,117960.0,1.03712782]
[1753012777990,0.2806,117970.0,117960.0,1.68060782]
[1753012780692,0.2806,117970.0,117960.0,1.61977125]
[1753012780893,0.21676,117970.0,117960.0,1.61977125]
[1753012782699,0.21676,117970.0,117960.0,1.69600591]
[1753012782998,0.21676,117970.0,117960.0,1.61977125]
[1753012783197,0.21676,117970.0,117960.0,1.69600591]
[1753012786397,0.21676,117970.0,117960.0,0.97440591]
[1753012786602,0.21676,117970.0,117960.0,1.69600591]
[1753012789896,0.21676,117970.0,117960.0,0.97440591]
[1753012790095,0.21676,117970.0,117960.0,1.69600591]
[1753012790598,0.21676,117970.0,117960.0,1.679109]
[1753012790905,0.20207,117970.0,117960.0,1.679109]
[1753012791102,0.21645,117970.0,117960.0,1.679109]
[1753012793901,0.20207,117970.0,117960.0,2.039109]
[1753012794107,0.20207,117970.0,117960.0,1.999109]
[1753012794707,0.21645,117970.0,117960.0,1.679109]
[1753012794910,0.21645,117970.0,117960.0,1.60287434]
[1753012796718,0.21645,117970.0,117960.0,1.89457434]
[1753012800015,0.21645,117970.0,117960.0,1.970809]
[1753012802716,0.27231,117970.0,117960.0,1.970809]
[1753012803517,0.2795,117970.0,117960.0,1.968849]
[1753012804908,0.2795,117970.0,117960.0,1.89261434]
[1753012805217,0.2795,117970.0,117960.0,1.95359162]
[1753012805516,0.2795,117970.0,117960.0,1.66189162]
[1753012807117,0.2795,117970.0,117960.0,1.66157162]
[1753012807518,0.4489614,117970.0,117960.0,1.30077162]
[1753012808320,0.4489614,117970.0,117960.0,0.65961192]
[1753012808616,0.4489614,117970.0,117960.0,0.93993192]
[1753012808919,0.46603941,117970.0,117960.0,0.92460327]
[1753012809119,1.24638341,117970.0,117960.0,0.11408747]
[1753012809320,1.24637871,117970.0,117960.0,0.28356327]
[1753012810221,0.99637871,117970.0,117960.0,0.28356327]
[1753012811624,0.99637871,117970.0,117960.0,0.21524443]
[1753012812220,0.99637871,117970.0,117960.0,0.1694758]
[1753012813120,1.08111471,117970.0,117960.0,0.1694758]
[1753012813320,1.12348311,117970.0,117960.0,0.1694758]
[1753012815020,0.2325257,117960.0,117950.0,0.71840748]
[1753012815227,0.4618657,117960.0,117950.0,0.71840748]
[1753012815624,0.4618657,117960.0,117950.0,0.42181728]
[1753012816226,0.4618657,117960.0,117950.0,0.06101728]
[1753012816429,0.4628657,117960.0,117950.0,0.001]
[1753012816729,0.8236657,117960.0,117950.0,0.001]
[1753012817330,0.8236657,117960.0,117950.0,0.0466893]
[1753012819928,1.4640257,117960.0,117950.0,0.0466893]
[1753012821733,1.53302912,117960.0,117950.0,0.0466893]
[1753012822335,1.53302912,117960.0,117950.0,0.001]
[1753012823031,0.1694899,117950.0,117940.0,0.0456893]
[1753012823236,0.8026799,117950.0,117940.0,0.0456893]
[1753012824432,0.3173043,117940.0,117930.0,0.2152079]
[1753012824633,0.4418943,117940.0,117930.0,0.4064893]
[1753012825135,0.4418943,117940.0,117930.0,0.0456893]
[1753012826330,0.4438943,117940.0,117930.0,0.0466893]
[1753012826728,0.4438943,117940.0,117930.0,0.0486893]
[1753012829632,0.4438943,117940.0,117930.0,0.003]
[1753012830339,0.4418943,117940.0,117930.0,0.002]
[1753012830539,0.4438943,117940.0,117930.0,0.002]
[1753012830933,0.2338286,117930.0,117920.0,0.6183939]
[1753012831139,0.4392686,117930.0,117920.0,0.6183939]
[1753012831531,0.4392686,117930.0,117920.0,0.5760223]
[1753012832136,0.4402686,117930.0,117920.0,0.5760223]
[1753012835041,0.4402686,117930.0,117920.0,0.530333]
[1753012837652,0.4402686,117930.0,117920.0,0.59135028]
[1753012837845,0.4402686,117930.0,117920.0,0.60841375]
[1753012840452,0.4402686,117930.0,117920.0,0.59135028]
[1753012845059,0.4402686,117930.0,117920.0,0.5760288]
[1753012846358,0.4402686,117930.0,117920.0,0.530333]
[1753012846660,0.4402686,117930.0,117920.0,0.5934523]
[1753012846861,0.4402686,117930.0,117920.0,0.54774471]
[1753012847062,0.4402686,117930.0,117920.0,0.59345192]
[1753012847253,0.4402686,117930.0,117920.0,0.54774471]
[1753012850257,0.4402686,117930.0,117920.0,0.60876199]
[1753012855167,0.4402686,117930.0,117920.0,0.62397937]
[1753012856068,0.4402686,117930.0,117920.0,0.60879252]
[1753012856269,0.4402686,117930.0,117920.0,0.54774471]
[1753012856470,0.4402686,117930.0,117920.0,0.60879761]
[1753012857364,0.4402686,117930.0,117920.0,0.60880353]
[1753012857764,0.4402686,117930.0,117920.0,0.54774471]
[1753012857966,0.4402686,117930.0,117920.0,0.60880359]
[1753012862480,0.4402686,117930.0,117920.0,0.62397937]
[1753012865081,0.4402686,117930.0,117920.0,0.60656766]
[1753012865380,0.4402686,117930.0,117920.0,0.62366919]
[1753012870888,0.4402686,117930.0,117920.0,0.54743453]
[1753012873484,0.27075,117930.0,117920.0,0.54743453]
[1753012873685,0.4402685,117930.0,117920.0,0.54743453]
[1753012873986,0.4402685,117930.0,117920.0,0.18663453]
[1753012874187,0.4402685,117930.0,117920.0,0.54743453]
[1753012876090,0.4402685,117930.0,117920.0,1.18379453]
[1753012878188,0.4402685,117930.0,117920.0,1.24486483]
[1753012879189,0.3280529,117920.0,117910.0,0.07623466]
[1753012879388,0.2248772,117910.0,117900.0,0.54295363]
[1753012879594,0.4380672,117910.0,117900.0,0.36877485]
[1753012879795,0.4380672,117910.0,117900.0,0.44500951]
[1753012879992,0.4380672,117910.0,117900.0,0.36877485]
[1753012880191,1.0741072,117910.0,117900.0,0.00797485]
[1753012880387,0.1695617,117900.0,117890.0,1.37927036]
[1753012880594,0.4773082,117900.0,117890.0,1.36220192]
[1753012880788,0.4773082,117900.0,117890.0,1.00140192]
[1753012880994,0.4773082,117900.0,117890.0,0.89249783]
[1753012881194,0.4773082,117900.0,117890.0,0.57482443]
[1753012881394,0.4773082,117900.0,117890.0,1.21078443]
[1753012882496,0.4773082,117900.0,117890.0,1.21891321]
[1753012882894,0.4793082,117900.0,117890.0,1.21991321]
[1753012883289,0.54584063,117900.0,117890.0,0.00306403]
[1753012885294,0.54384063,117900.0,117890.0,0.00206403]
[1753012885500,0.54484063,117900.0,117890.0,0.00406403]
[1753012886194,0.90564063,117900.0,117890.0,0.00406403]
[1753012886402,0.90564063,117900.0,117890.0,0.00206403]
[1753012892603,0.1065,117880.0,117870.0,0.6576049]
[1753012892806,0.4461904,117880.0,117870.0,1.2927649]
[1753012893903,0.4461904,117880.0,117870.0,1.30100505]
[1753012894098,0.4481904,117880.0,117870.0,1.30200505]
[1753012894599,0.4481904,117880.0,117870.0,1.30400505]
[1753012896004,0.4481904,117880.0,117870.0,0.66884505]
[1753012896303,0.4481904,117880.0,117870.0,1.30384505]
[1753012897408,0.4481904,117880.0,117870.0,1.26144425]
[1753012899207,0.4481904,117880.0,117870.0,1.21904425]
[1753012899412,0.4481904,117880.0,117870.0,1.00704015]
[1753012900505,0.4481904,117880.0,117870.0,0.37204015]
[1753012900709,0.46722396,117880.0,117870.0,0.37204015]
[1753012901715,0.46722396,117880.0,117870.0,0.54164485]
[1753012904715,0.46722396,117880.0,117870.0,0.5334047]
[1753012913521,0.48604632,117880.0,117870.0,0.5334047]
[1753012915120,0.46722396,117880.0,117870.0,0.59426201]
[1753012915824,0.46722396,117880.0,117870.0,0.06385731]
[1753012916025,0.84672479,117880.0,117870.0,0.003]
[1753012917224,0.84672479,117880.0,117870.0,0.001]
[1753012917625,0.3136347,117870.0,117860.0,1.25694351]
[1753012917826,0.4378947,117870.0,117860.0,1.25694351]
[1753012918320,1.4321347,117870.0,117860.0,0.00823811]
[1753012918519,0.1937935,117850.0,117840.0,0.61732303]
[1753012918727,0.4379235,117850.0,117840.0,0.53250243]
[1753012919027,1.0713635,117850.0,117840.0,0.00206403]
[1753012919722,1.4321635,117850.0,117840.0,0.00206403]
[1753012919928,1.4341635,117850.0,117840.0,0.00306403]
[1753012920123,1.45283216,117850.0,117840.0,0.00306403]
[1753012921126,1.45283216,117850.0,117840.0,0.00506403]
[1753012921825,1.45283216,117850.0,117840.0,0.00306403]
[1753012922528,1.45283216,117850.0,117840.0,0.00206403]
[1753012922529,1.45183216,117850.0,117840.0,0.00206403]
[1753012923030,1.45183216,117850.0,117840.0,0.00222726]
[1753012926430,0.2326922,117830.0,117820.0,6.1696706]
[1753012926628,1.09013362,117830.0,117820.0,6.1696706]
[1753012927126,1.09013362,117830.0,117820.0,6.17762244]
[1753012927628,1.09013362,117830.0,117820.0,6.54142244]
[1753012927828,1.09213362,117830.0,117820.0,6.54142244]
[1753012928326,0.45877362,117830.0,117820.0,6.54142244]
[1753012930033,0.45877362,117830.0,117820.0,6.37175184]
[1753012930229,0.45877362,117830.0,117820.0,6.3638]
[1753012931133,0.45877362,117830.0,117820.0,6.5334764]
[1753012931332,0.52820231,117830.0,117820.0,6.5334764]
[1753012931728,0.39574362,117830.0,117820.0,6.5341464]
[1753012931934,0.38148362,117830.0,117820.0,7.5174264]
[1753012932133,0.13082142,117830.0,117820.0,7.5474264]
[1753012932330,0.13015142,117830.0,117820.0,7.5474264]
[1753012932631,0.06701709,117830.0,117820.0,7.9671704]
[1753012933137,0.06701709,117830.0,117820.0,8.02802771]
[1753012934427,0.06701709,117830.0,117820.0,8.03601346]
[1753012935227,0.06701709,117830.0,117820.0,7.97515615]
[1753012935943,0.06701709,117830.0,117820.0,8.26685615]
[1753012936238,0.03841189,117830.0,117820.0,8.26685615]
[1753012936438,0.01868794,117860.0,117850.0,0.1696333]
[1753012936638,0.14868794,117860.0,117850.0,1.8543533]
[1753012937036,0.14868794,117860.0,117850.0,1.5243533]
[1753012937243,0.14868794,117860.0,117850.0,1.8443533]
[1753012937432,0.14868794,117860.0,117850.0,1.5243133]
[1753012937633,0.23068794,117860.0,117850.0,1.5243133]
[1753012937935,0.23068794,117860.0,117850.0,1.8943133]
[1753012938134,0.23068794,117860.0,117850.0,1.8343133]
[1753012938336,0.23068794,117860.0,117850.0,1.5243133]
[1753012938838,0.23068794,117860.0,117850.0,0.8912333]
[1753012939144,0.23168794,117860.0,117850.0,1.59253516]
[1753012939334,0.23168794,117860.0,117850.0,1.26953516]
[1753012939645,0.23168794,117860.0,117850.0,1.59249516]
[1753012939944,0.23168794,117860.0,117850.0,1.93249516]
[1753012940240,0.23168794,117860.0,117850.0,1.59249516]
[1753012940639,0.23168794,117860.0,117850.0,1.91249516]
[1753012940835,0.23168794,117860.0,117850.0,1.59249516]
[1753012941036,0.23168794,117860.0,117850.0,1.96249516]
[1753012941340,0.23168794,117860.0,117850.0,0.95953516]
[1753012941530,0.24594794,117860.0,117850.0,1.59245516]
[1753012942443,0.24594794,117860.0,117850.0,1.59241516]
[1753012942637,0.24594794,117860.0,117850.0,0.95953516]
[1753012942836,0.24594794,117860.0,117850.0,1.59237516]
[1753012944842,0.24594794,117860.0,117850.0,1.59256516]
[1753012945842,0.22726,117860.0,117850.0,1.59256516]
[1753012946445,0.22726,117860.0,117850.0,0.96002516]
[1753012946645,0.22726,117860.0,117850.0,1.59278516]
[1753012948746,0.22726,117860.0,117850.0,1.59266516]
[1753012950247,0.28726,117860.0,117850.0,0.96002516]
[1753012950544,0.28726,117860.0,117850.0,1.59258516]
[1753012951546,0.49529079,117860.0,117850.0,1.59239516]
[1753012952047,0.49529079,117860.0,117850.0,1.59235516]
[1753012953043,0.32567189,117860.0,117850.0,1.59235516]
[1753012953639,0.32567189,117860.0,117850.0,1.59254516]
[1753012955049,0.213,117860.0,117850.0,1.97254516]
[1753012956251,0.26568189,117860.0,117850.0,1.59254516]
[1753012956449,0.31767189,117860.0,117850.0,1.59135516]
[1753012956641,0.32568189,117860.0,117850.0,1.59335516]
[1753012957150,0.32468189,117860.0,117850.0,1.59335516]
[1753012958049,0.49430069,117860.0,117850.0,1.59335516]
[1753012958250,0.51306381,117860.0,117850.0,1.59331516]
[1753012959746,0.51306381,117860.0,117850.0,1.59327516]
[1753012961354,0.51306381,117860.0,117850.0,1.23247516]
[1753012961550,0.51306381,117860.0,117850.0,0.60003516]
[1753012961854,0.51306381,117860.0,117850.0,1.23247516]
[1753012965050,0.34344501,117860.0,117850.0,1.23247516]
[1753012966252,0.34344501,117860.0,117850.0,1.23266516]
[1753012966453,0.30503312,117860.0,117850.0,1.23266516]
[1753012966653,0.28344501,117860.0,117850.0,1.23266516]
[1753012966853,0.30564501,117860.0,117850.0,0.60022516]
[1753012967053,0.34344501,117860.0,117850.0,0.60022516]
[1753012968857,0.51306381,117860.0,117850.0,0.60003516]
[1753012969653,0.51306381,117860.0,117850.0,0.06930186]
[1753012969858,0.87386381,117860.0,117850.0,0.87357506]
[1753012970452,0.87386381,117860.0,117850.0,0.8062732]
[1753012970857,0.89251373,117860.0,117850.0,0.8062732]
[1753012971260,0.87386381,117860.0,117850.0,0.8062732]
[1753012971756,0.87386381,117860.0,117850.0,0.8060732]
[1753012972663,0.89250884,117860.0,117850.0,0.8060732]
[1753012973163,0.87386381,117860.0,117850.0,0.1716332]
[1753012973563,0.89250672,117860.0,117850.0,0.002]
[1753012975765,0.90070688,117860.0,117850.0,0.002]
[1753012976958,1.07041089,117860.0,117850.0,0.002]
[1753012977160,0.2318832,117850.0,117840.0,0.1696472]
[1753012977462,0.3258676,117840.0,117830.0,0.2544815]
[1753012977661,0.49427949,117840.0,117830.0,0.2544815]
[1753012978663,0.51294215,117840.0,117830.0,0.2544815]
[1753012978864,0.51294215,117840.0,117830.0,0.1696509]
[1753012979460,0.1696619,117830.0,117820.0,7.25584565]
[1753012979668,0.48429379,117830.0,117820.0,7.25584565]
[1753012980164,0.48429379,117830.0,117820.0,7.25588565]
[1753012980766,0.48429379,117830.0,117820.0,7.25788565]
[1753012981065,0.4458819,117830.0,117820.0,7.25788565]
[1753012981259,0.48429379,117830.0,117820.0,6.62528565]
[1753012981655,0.48429379,117830.0,117820.0,7.25788565]
[1753012982161,0.48629379,117830.0,117820.0,6.62528565]
[1753012982361,0.48629379,117830.0,117820.0,7.25788565]
[1753012987261,0.48629379,117830.0,117820.0,7.25953565]
[1753012988065,0.48629379,117830.0,117820.0,6.62693565]
[1753012988367,0.48629379,117830.0,117820.0,7.25953565]
[1753012990167,0.3720719,117830.0,117820.0,7.25953565]
[1753012991767,0.20241,117830.0,117820.0,7.25953565]
[1753012991964,0.3720719,117830.0,117820.0,7.25953565]
[1753012992166,0.20241,117830.0,117820.0,7.25953565]
[1753012993066,0.3720719,117830.0,117820.0,7.25953565]
[1753012994770,0.3856319,117830.0,117820.0,7.25953565]
[1753012994965,0.21597,117830.0,117820.0,7.25953565]
[1753012995263,0.20241,117830.0,117820.0,7.25953565]
[1753012995468,0.122,117830.0,117820.0,7.25953565]
[1753012996667,0.16812,117830.0,117820.0,7.25953565]
[1753012996871,0.20241,117830.0,117820.0,7.25953565]
[1753012997172,0.3720719,117830.0,117820.0,7.25953565]
[1753012998770,0.3856319,117830.0,117820.0,7.25953565]
[1753012999671,0.4095319,117830.0,117820.0,7.25953565]
[1753012999866,0.4095319,117830.0,117820.0,6.62693565]
[1753013000172,0.4478819,117830.0,117820.0,7.17454025]
[1753013000671,0.4478819,117830.0,117820.0,6.54211205]
[1753013000872,0.48629379,117830.0,117820.0,7.17455205]
[1753013003172,0.48629379,117830.0,117820.0,7.23540936]
[1753013010282,0.31663189,117830.0,117820.0,7.23540936]
[1753013011383,0.30946189,117830.0,117820.0,7.23540936]
[1753013011581,0.25438189,117830.0,117820.0,7.23540936]
[1753013011782,0.24082189,117830.0,117820.0,7.23540936]
[1753013011980,0.24082189,117830.0,117820.0,7.17455205]
[1753013012580,0.122,117830.0,117820.0,7.17455205]
[1753013012777,0.122,117830.0,117820.0,7.52455205]
[1753013013277,0.19875,117830.0,117820.0,7.52455205]
[1753013015380,0.19875,117830.0,117820.0,7.60078671]
[1753013015678,0.19875,117830.0,117820.0,7.61789438]
[1753013016681,0.19875,117830.0,117820.0,7.60273438]
[1753013018486,0.122,117830.0,117820.0,7.60273438]
[1753013018880,0.19875,117830.0,117820.0,7.60273438]
[1753013025385,0.19875,117830.0,117820.0,7.25273438]
[1753013025986,0.19875,117830.0,117820.0,7.61353438]
[1753013028089,0.23716189,117830.0,117820.0,7.61353438]
[1753013035493,0.23716189,117830.0,117820.0,7.55245972]
[1753013035892,0.23716189,117830.0,117820.0,7.90245972]
[1753013036093,0.23716189,117830.0,117820.0,7.92245972]
[1753013036294,0.23716189,117830.0,117820.0,7.55245972]
[1753013036596,0.23716189,117830.0,117820.0,7.89245972]
[1753013036997,0.23716189,117830.0,117820.0,7.96884416]
[1753013037498,0.23716189,117830.0,117820.0,7.89245972]
[1753013039200,0.23716189,117830.0,117820.0,7.55245972]
[1753013039592,0.31019189,117830.0,117820.0,7.55245972]
[1753013040402,0.30349189,117830.0,117820.0,7.55245972]
[1753013040897,0.30349189,117830.0,117820.0,7.61357502]
[1753013041105,0.27281189,117830.0,117820.0,7.61357502]
[1753013041601,0.24993189,117830.0,117820.0,7.61357502]
[1753013042903,0.24993189,117830.0,117820.0,6.98113502]
[1753013043103,0.24993189,117830.0,117820.0,7.61213502]
[1753013043799,0.24993189,117830.0,117820.0,7.55101972]
[1753013044899,0.24993189,117830.0,117820.0,7.62740416]
[1753013045403,0.09936662,117830.0,117820.0,8.03851674]
[1753013045605,0.09398476,117830.0,117820.0,7.90101972]
[1753013045794,0.06382436,117830.0,117820.0,7.90101972]
[1753013046000,6e-08,117830.0,117820.0,7.90101972]
[1753013046200,0.04548266,117830.0,117820.0,7.90101972]
[1753013046502,6e-08,117830.0,117820.0,7.90101972]
[1753013047103,6e-08,117830.0,117820.0,7.97740416]
[1753013047298,6e-08,117830.0,117820.0,7.90101972]
[1753013047803,6e-08,117830.0,117820.0,8.07076372]
[1753013048605,6e-08,117830.0,117820.0,8.07048372]
[1753013048806,6e-08,117830.0,117820.0,8.17742194]
[1753013051209,6e-08,117830.0,117820.0,8.46912194]
[1753013051702,6e-08,117830.0,117820.0,8.29937794]
[1753013052402,6e-08,117830.0,117820.0,7.66865794]
[1753013052706,6e-08,117830.0,117820.0,8.29913794]
[1753013052909,6e-08,117830.0,117820.0,8.19219972]
[1753013053402,6e-08,117830.0,117820.0,8.36194372]
[1753013053602,6e-08,117830.0,117820.0,8.46888194]
[1753013054302,0.08931006,117830.0,117820.0,7.37695794]
[1753013054606,0.08931006,117830.0,117820.0,6.4488488]
[1753013054607,0.35485365,117830.0,117820.0,6.4488488]
[1753013054806,0.35485365,117830.0,117820.0,7.01825342]
[1753013055006,0.12772195,117830.0,117820.0,6.97932757]
[1753013055200,0.12772195,117830.0,117820.0,7.54868952]
[1753013055401,0.12772195,117830.0,117820.0,7.60964823]
[1753013055602,0.12772195,117830.0,117820.0,7.54868952]
[1753013056506,0.29738365,117830.0,117820.0,7.54868952]
[1753013058008,0.12772195,117830.0,117820.0,7.60965368]
[1753013058508,0.11495195,117830.0,117820.0,7.60965368]
[1753013058903,0.12772195,117830.0,117820.0,7.60965368]
[1753013060310,0.11495195,117830.0,117820.0,7.60965368]
[1753013061709,0.11495195,117830.0,117820.0,7.61026368]
[1753013063701,0.13392457,117830.0,117820.0,7.61026368]
[1753013069011,6e-08,117830.0,117820.0,7.94026368]
[1753013069216,6e-08,117830.0,117820.0,7.93964955]
[1753013070315,6e-08,117830.0,117820.0,7.87868952]
[1753013071616,6e-08,117830.0,117820.0,7.95487619]
[1753013072114,6e-08,117830.0,117820.0,7.98562774]
[1753013075219,6e-08,117830.0,117820.0,8.06182849]
[1753013075519,6e-08,117830.0,117820.0,7.95489027]
[1753013080220,0.08186006,117830.0,117820.0,7.95381027]
[1753013080517,6e-08,117830.0,117820.0,7.95437027]
[1753013080718,6e-08,117830.0,117820.0,7.95381027]
[1753013087925,6e-08,117830.0,117820.0,7.87760952]
[1753013088123,6e-08,117830.0,117820.0,9.05108952]
[1753013088427,6e-08,117830.0,117820.0,9.15802774]
[1753013088627,0.08186,117840.0,117830.0,0.1711116]
[1753013088823,0.12,117840.0,117830.0,1.56699034]
[1753013089028,0.11944,117840.0,117830.0,1.56699034]
[1753013089328,0.11944,117840.0,117830.0,1.4907516]
[1753013089523,0.11944,117840.0,117830.0,1.59768982]
[1753013089717,0.12044,117840.0,117830.0,1.59968982]
[1753013089916,0.12044,117840.0,117830.0,1.60068982]
[1753013090520,0.2023,117840.0,117830.0,1.60068982]
[1753013091927,0.12044,117840.0,117830.0,1.60068982]
[1753013092127,0.15885189,117840.0,117830.0,1.60068982]
[1753013093030,0.12044,117840.0,117830.0,1.60068982]
[1753013094027,0.12044,117840.0,117830.0,1.89238982]
[1753013094230,0.12044,117840.0,117830.0,1.96860594]
[1753013094730,0.12044,117840.0,117830.0,1.7854516]
[1753013095528,0.12044,117840.0,117830.0,1.89238982]
[1753013097725,0.12044,117840.0,117830.0,1.96860091]
[1753013097931,0.12044,117840.0,117830.0,1.86166269]
[1753013100434,0.12044,117840.0,117830.0,2.36316269]
[1753013102232,0.19581,117840.0,117830.0,2.36316269]
[1753013102730,0.19581,117840.0,117830.0,2.39388982]
[1753013103635,0.19581,117840.0,117830.0,2.2869516]
[1753013104535,0.1723925,117840.0,117830.0,2.2869516]
[1753013105033,0.1321817,117840.0,117830.0,2.3936692]
[1753013105233,0.03166,117840.0,117830.0,2.4008392]
[1753013105432,0.13166,117840.0,117830.0,2.4008392]
[1753013105933,0.084983,117840.0,117830.0,2.3163816]
[1753013106133,0.0493635,117840.0,117830.0,2.3163816]
[1753013107139,1e-07,117840.0,117830.0,2.3163816]
[1753013108339,1e-07,117840.0,117830.0,2.42309676]
[1753013109440,1e-07,117840.0,117830.0,2.3163816]
[1753013109841,0.11374199,117850.0,117840.0,0.2038074]
[1753013110141,0.23374199,117850.0,117840.0,1.02786764]
[1753013110540,0.24758199,117850.0,117840.0,1.02786764]
[1753013110741,0.24758199,117850.0,117840.0,0.9211494]
[1753013111042,0.24858199,117850.0,117840.0,0.9241494]
[1753013111643,0.24858199,117850.0,117840.0,1.03086764]
[1753013112542,0.24858199,117850.0,117840.0,1.03149764]
[1753013113141,0.24858199,117850.0,117840.0,1.03249764]
[1753013113444,0.24758199,117850.0,117840.0,1.02949764]
[1753013113645,0.24858199,117850.0,117840.0,1.03249764]
[1753013116848,0.05807842,117850.0,117840.0,1.03249764]
[1753013117148,2e-08,117850.0,117840.0,1.10877877]
[1753013117348,2e-08,117850.0,117840.0,1.2174794]
[1753013117544,0.0455,117860.0,117850.0,0.2860632]
[1753013117746,0.20391189,117860.0,117850.0,1.73177144]
[1753013119052,0.1655,117860.0,117850.0,1.73177144]
[1753013119243,0.15841189,117860.0,117850.0,1.73177144]
[1753013119650,0.15941189,117860.0,117850.0,1.73477144]
[1753013120656,0.15841189,117860.0,117850.0,1.73177144]
[1753013120850,0.15941189,117860.0,117850.0,1.73777144]
[1753013121155,0.07141419,117860.0,117850.0,1.73777144]
[1753013121454,9e-08,117860.0,117850.0,1.73777144]
[1753013121653,0.25921,117880.0,117870.0,0.2609744]
[1753013121859,0.25644,117880.0,117870.0,1.79038311]
[1753013122060,0.25644,117880.0,117870.0,2.03411476]
[1753013122355,0.22681,117880.0,117870.0,2.06411476]
[1753013122560,0.22681,117880.0,117870.0,2.00310067]
[1753013122961,0.111,117880.0,117870.0,2.00310067]
[1753013123258,0.111,117880.0,117870.0,2.07936902]
[1753013123757,0.20021,117880.0,117870.0,2.07936902]
[1753013123955,0.111,117880.0,117870.0,2.07936902]
[1753013124157,0.111,117880.0,117870.0,3.25252902]
[1753013124354,0.111,117880.0,117870.0,3.17626067]
[1753013125250,0.14611,117880.0,117870.0,3.23721063]
[1753013125446,0.20958,117880.0,117870.0,3.23721063]
[1753013126758,0.21058,117880.0,117870.0,3.23921063]
[1753013128364,0.1622,117880.0,117870.0,3.23921063]
[1753013128859,0.21058,117880.0,117870.0,3.23921063]
[1753013129560,0.14711,117880.0,117870.0,3.23921063]
[1753013129761,0.112,117880.0,117870.0,3.23921063]
[1753013130262,0.14711,117880.0,117870.0,3.23921063]
[1753013130560,0.14711,117880.0,117870.0,3.17826067]
[1753013130761,0.14711,117880.0,117870.0,3.25452902]
[1753013131061,0.19549,117880.0,117870.0,3.25452902]
[1753013131356,0.112,117880.0,117870.0,3.25452902]
[1753013133063,0.1622,117880.0,117870.0,3.25452902]
[1753013133763,0.21058,117880.0,117870.0,3.25452902]
[1753013133967,0.21058,117880.0,117870.0,1.45404902]
[1753013134162,0.21058,117880.0,117870.0,3.25392902]
[1753013135062,0.21058,117880.0,117870.0,2.62708902]
[1753013135364,0.21058,117880.0,117870.0,3.25392902]
[1753013136666,0.21058,117880.0,117870.0,3.17766067]
[1753013136863,0.21058,117880.0,117870.0,3.25392902]
[1753013138859,0.21058,117880.0,117870.0,2.62708902]
[1753013139060,0.27673,117880.0,117870.0,2.38708902]
[1753013139265,0.27673,117880.0,117870.0,1.94990067]
[1753013139468,0.27673,117880.0,117870.0,2.01075833]
[1753013139662,0.27673,117880.0,117870.0,2.08593833]
[1753013140063,0.27673,117880.0,117870.0,1.45925833]
[1753013140263,0.27673,117880.0,117870.0,2.08589833]
[1753013140567,0.21058,117880.0,117870.0,2.08589833]
[1753013141167,0.21058,117880.0,117870.0,1.45925833]
[1753013141368,0.21058,117880.0,117870.0,2.08589833]
[1753013141667,0.21058,117880.0,117870.0,2.02504067]
[1753013142258,0.21058,117880.0,117870.0,2.10130902]
[1753013142962,0.21058,117880.0,117870.0,2.02504067]
[1753013143164,0.21058,117880.0,117870.0,2.10130902]
[1753013144168,0.21058,117880.0,117870.0,2.02504067]
[1753013144469,0.21058,117880.0,117870.0,2.10130902]
[1753013145467,0.21058,117880.0,117870.0,2.02504067]
[1753013147371,0.21058,117880.0,117870.0,2.10130902]
[1753013147970,0.21058,117880.0,117870.0,2.02504067]
[1753013150371,0.21058,117880.0,117870.0,2.10130902]
[1753013153375,0.21058,117880.0,117870.0,2.02504067]
[1753013153575,0.21058,117880.0,117870.0,2.13175891]
[1753013154072,0.21058,117880.0,117870.0,2.02504067]
[1753013154272,0.21058,117880.0,117870.0,2.13175891]
[1753013160083,0.14711,117880.0,117870.0,2.13175891]
[1753013160681,0.19699,117880.0,117870.0,2.13175891]
[1753013160880,0.112,117880.0,117870.0,2.13175891]
[1753013163485,0.112,117880.0,117870.0,2.42345891]
[1753013164387,0.112,117880.0,117870.0,2.39307006]
[1753013165386,0.112,117880.0,117870.0,2.31674067]
[1753013165586,0.112,117880.0,117870.0,2.42345891]
[1753013166189,0.0781211,117880.0,117870.0,2.42345891]
[1753013166487,0.0781211,117880.0,117870.0,3.59645891]
[1753013166788,0.053622,117880.0,117870.0,3.59645891]
[1753013167083,0.23017,117900.0,117890.0,0.1695758]
[1753013167278,0.24185,117900.0,117890.0,2.02400694]
[1753013167587,0.24185,117900.0,117890.0,2.04400694]
[1753013168388,0.24485,117900.0,117890.0,2.04400694]
[1753013168784,0.24685,117900.0,117890.0,2.04500694]
[1753013170986,0.24685,117900.0,117890.0,2.12130382]
[1753013171890,0.24685,117900.0,117890.0,2.1823131]
[1753013172092,0.24685,117900.0,117890.0,2.10601622]
[1753013174293,0.24685,117900.0,117890.0,1.72601622]
[1753013174692,0.24685,117900.0,117890.0,2.06601622]
[1753013175491,0.24685,117900.0,117890.0,1.44029622]
[1753013175692,0.24685,117900.0,117890.0,2.06553622]
[1753013176997,0.24685,117900.0,117890.0,1.44029622]
[1753013177197,0.24685,117900.0,117890.0,2.00278694]
[1753013177397,0.24685,117900.0,117890.0,1.66278694]
[1753013178999,0.24685,117900.0,117890.0,1.73908382]
[1753013184199,0.24685,117900.0,117890.0,1.11392382]
[1753013184402,0.24685,117900.0,117890.0,1.73872382]
[1753013191308,0.24685,117900.0,117890.0,1.74044382]
[1753013192209,0.21429,117900.0,117890.0,2.09044382]
[1753013193209,0.24716,117900.0,117890.0,2.09044382]
[1753013195408,0.24716,117900.0,117890.0,1.74044382]
[1753013196909,0.24716,117900.0,117890.0,1.66414694]
[1753013197206,0.21429,117900.0,117890.0,1.66414694]
[1753013197412,0.18412,117900.0,117890.0,1.66414694]
[1753013197911,0.20682,117900.0,117890.0,1.66414694]
[1753013198603,0.21421,117900.0,117890.0,1.66414694]
[1753013203018,0.21421,117900.0,117890.0,1.74049357]
[1753013204713,0.21421,117900.0,117890.0,2.05049357]
[1753013204913,0.18412,117900.0,117890.0,1.97414694]
[1753013205113,0.03192415,117900.0,117890.0,2.14086518]
[1753013205320,0.00414415,117900.0,117890.0,2.14086518]
[1753013205516,0.1,117900.0,117890.0,2.03414694]
[1753013205721,0.0266114,117900.0,117890.0,2.03414694]
[1753013205927,0.31856,117920.0,117910.0,0.2011976]
[1753013206225,0.1956,117920.0,117910.0,1.30200127]
[1753013206426,0.1956,117920.0,117910.0,1.66280127]
[1753013207030,0.1956,117920.0,117910.0,1.98280127]
[1753013207826,0.2183,117920.0,117910.0,1.98280127]
[1753013208125,0.2183,117920.0,117910.0,1.98480127]
[1753013208126,0.2193,117920.0,117910.0,1.98480127]
[1753013208422,0.2193,117920.0,117910.0,2.05301462]
[1753013209622,0.2193,117920.0,117910.0,2.06135391]
[1753013209823,0.2193,117920.0,117910.0,2.000279]